[Event "IND-ch Women 2019"]
[Site "Karaikkudi"]
[Date "2019.07.20"]
[Round "2.8"]
[White "Nandhidhaa, P V"]
[Black "Toshali, V."]
[Result "1-0"]
[ECO "A07"]
[WhiteElo "2259"]
[BlackElo "1920"]
[Annotator "ChessBase"]
[PlyCount "83"]
[EventDate "2019.07.19"]
[EventType "swiss"]
[EventCountry "IND"]
[SourceTitle "playchess.com"]
[Source "ChessBase"]
[SourceQuality "1"]
[TimeControl "40/5400+30:1800+30"]

1. Nf3 {[%emt 0:00:00]} d5 {[%emt 0:00:00]} 2. g3 {[%emt 0:00:00]} c6 {[%emt 0:00:00]} 3. Bg2 {[%emt 0:00:00]} Nf6 {[%emt 0:00:48]} 4. O-O {[%emt 0:00:00]} Bf5 {[%emt 0:03:13]} 5. d3 {[%emt 0:05:33]} e6 {[%emt 0:00:32]} 6. Nh4 {[%emt 0:00:35]} Bg4 {[%emt 0:08:29]} 7. h3 {[%emt 0:00:21]} Bh5 {[%emt 0:00:02]} 8. Qe1 {[%emt 0:00:11]} Be7 {[%emt 0:07:19]} 9. f4 {[%emt 0:00:28]} Nfd7 {[%emt 0:03:18]} 10. Nf3 {[%emt 0:00:12]} Bxf3 {[%emt 0:08:43]} 11. Bxf3 {[%emt 0:00:35]} d4 {[%emt 0:07:25]} 12. e3 {[%emt 0:04:06]} Bf6 {[%emt 0:06:08]} 13. Nd2 {[%emt 0:08:52]} dxe3 {[%emt 0:04:52]} 14. Ne4 {[%emt 0:08:36]} Bd4 {[%emt 0:08:26]} 15. Kh2 {[%emt 0:08:44]} Nf6 {[%emt 0:03:48]} 16. c3 {[%emt 0:01:20]} Bb6 {[%emt 0:02:27]} 17. Nxf6+ {[%emt 0:07:18]} Qxf6 {[%emt 0:00:43]} 18. d4 {[%emt 0:00:59]} O-O {[%emt 0:03:03]} 19. Bxe3 {[%emt 0:00:05]} Nd7 {[%emt 0:04:19]} 20. Qf2 {[%emt 0:00:56]} Qg6 {[%emt 0:26:25]} 21. Rae1 {[%emt 0:02:00]} Nf6 {[%emt 0:00:00]} 22. g4 {[%emt 0:04:07]} Bc7 {[%emt 0:00:00]} 23. Bd1 {[%emt 0:05:53]} Nd5 {[%emt 0:00:00]} 24. Bd2 {[%emt 0:04:41]} Qh6 {[%emt 0:00:00]} 25. Kg2 {[%emt 0:02:44]} Qg6 {[%emt 0:00:00]} 26. c4 {[%emt 0:04:14]} Nf6 {[%emt 0:00:00]} 27. Bc1 {[%emt 0:15:27]} Qd3 {[%emt 0:00:00]} 28. b3 {[%emt 0:03:56]} Ba5 {[%emt 0:01:47]} 29. Re5 {[%emt 0:07:18]} Ne4 {[%emt 0:01:44]} 30. Qe3 {[%emt 0:01:43]} Qxe3 {[%emt 0:00:46]} 31. Bxe3 {[%emt 0:00:03]} Nd2 {[%emt 0:00:35]} 32. Rxa5 {[%emt 0:00:30]} Nxf1 {[%emt 0:00:02]} 33. Kxf1 {[%emt 0:00:01]} Rfd8 {[%emt 0:00:59]} 34. Bf3 {[%emt 0:00:12]} f6 {[%emt 0:00:34]} 35. f5 {[%emt 0:01:16]} exf5 {[%emt 0:00:25]} 36. Rxf5 {[%emt 0:00:12]} Re8 {[%emt 0:00:25]} 37. Kf2 {[%emt 0:00:13]} a6 {[%emt 0:00:36]} 38. d5 {[%emt 0:00:14]} Rac8 {[%emt 0:00:13]} 39. dxc6 {[%emt 0:00:41]} bxc6 {[%emt 0:01:24]} 40. Rc5 {[%emt 0:00:00]} Kf8 {[%emt 0:00:00]} 41. Rxc6 {[%emt 0:01:13]} Rxc6 {[%emt 0:00:00]} 42. Bxc6 {[%emt 0:00:02]} 1-0

[Event "IND-ch Women 2019"]
[Site "Karaikkudi"]
[Date "2019.07.20"]
[Round "2.9"]
[White "Meghna, C H"]
[Black "Vantika Agrawal"]
[Result "0-1"]
[ECO "B06"]
[WhiteElo "1903"]
[BlackElo "2243"]
[Annotator "ChessBase"]
[PlyCount "66"]
[EventDate "2019.07.19"]
[EventType "swiss"]
[EventCountry "IND"]
[SourceTitle "playchess.com"]
[Source "ChessBase"]
[SourceQuality "1"]
[TimeControl "40/5400+30:1800+30"]

1. e4 {[%emt 0:00:00]} g6 {[%emt 0:00:00]} 2. d4 {[%emt 0:00:00]} Bg7 {[%emt 0:00:00]} 3. Nc3 {[%emt 0:00:06]} d6 {[%emt 0:00:00]} 4. Be3 {[%emt 0:00:09]} a6 {[%emt 0:00:08]} 5. a4 {[%emt 0:06:16]} b6 {[%emt 0:06:30]} 6. Bc4 {[%emt 0:11:39]} e6 {[%emt 0:02:23]} 7. Nf3 {[%emt 0:12:00]} Bb7 {[%emt 0:01:07]} 8. O-O {[%emt 0:00:07]} Ne7 {[%emt 0:03:42]} 9. Re1 {[%emt 0:04:32]} h6 {[%emt 0:03:14]} 10. Qe2 {[%emt 0:08:04]} Nd7 {[%emt 0:02:37]} 11. Rad1 {[%emt 0:01:22]} O-O {[%emt 0:01:51]} 12. Nd2 {[%emt 0:01:18]} d5 {[%emt 0:06:01]} 13. exd5 {[%emt 0:07:25]} Nxd5 {[%emt 0:03:53]} 14. Nxd5 {[%emt 0:00:46]} exd5 {[%emt 0:00:20]} 15. Ba2 {[%emt 0:09:09]} c5 {[%emt 0:17:34]} 16. Nf1 {[%emt 0:05:01]} c4 {[%emt 0:01:24]} 17. c3 {[%emt 0:04:59]} Bc6 {[%emt 0:00:41]} 18. Qc2 {[%emt 0:06:55]} Nf6 {[%emt 0:04:34]} 19. Ra1 {[%emt 0:02:57]} b5 {[%emt 0:01:55]} 20. a5 {[%emt 0:01:13]} Qd6 {[%emt 0:11:58]} 21. Qc1 {[%emt 0:01:20]} Kh7 {[%emt 0:07:03]} 22. Bb1 {[%emt 0:02:09]} Rae8 {[%emt 0:04:05]} 23. f3 {[%emt 0:03:02]} b4 {[%emt 0:03:08]} 24. Bc2 {[%emt 0:07:12]} b3 {[%emt 0:01:12]} 25. Bd1 {[%emt 0:00:08]} Qd8 {[%emt 0:01:07]} 26. Ng3 {[%emt 0:01:51]} Re7 {[%emt 0:02:29]} 27. Be2 {[%emt 0:01:51]} Rfe8 {[%emt 0:00:29]} 28. Bf4 {[%emt 0:00:16]} Re6 {[%emt 0:05:39]} 29. h4 {[%emt 0:01:09]} Nh5 {[%emt 0:03:47]} 30. Nxh5 {[%emt 0:01:05]} Rxe2 {[%emt 0:02:33]} 31. Rxe2 {[%emt 0:00:23]} Rxe2 {[%emt 0:00:05]} 32. Nxg7 {[%emt 0:00:36]} Qxh4 {[%emt 0:00:26]} 33. Be5 {[%emt 0:00:53]} Qf2+ {[%emt 0:00:06]} 0-1

[Event "IND-ch Women 2019"]
[Site "Karaikkudi"]
[Date "2019.07.20"]
[Round "2.10"]
[White "Mahalakshmi D M"]
[Black "Dhyana Patel"]
[Result "1/2-1/2"]
[ECO "D85"]
[WhiteElo "2227"]
[BlackElo "1900"]
[Annotator "NA"]
[PlyCount "184"]
[EventDate "2019.07.19"]
[EventType "swiss"]
[EventCountry "IND"]
[SourceTitle "playchess.com"]
[Source "ChessBase"]
[SourceQuality "1"]
[TimeControl "40/5400+30:1800+30"]

1. d4 {[%emt 0:00:00]} Nf6 {[%emt 0:00:00]} 2. c4 {[%emt 0:00:00]} g6 {[%emt 0:00:00]} 3. Nc3 {[%emt 0:00:14]} d5 {[%emt 0:00:20]} 4. cxd5 {[%emt 0:00:18]} Nxd5 {[%emt 0:00:07]} 5. e4 {[%emt 0:00:14]} Nxc3 {[%emt 0:00:20]} 6. bxc3 {[%emt 0:00:02]} Bg7 {[%emt 0:00:08]} 7. Bb5+ {[%emt 0:00:15]} c6 {[%emt 0:03:00]} 8. Ba4 {[%emt 0:02:21]} O-O {[%emt 0:00:18]} 9. Ne2 {[%emt 0:02:33]} c5 {[%emt 0:04:44]} 10. O-O {[%emt 0:01:12]} cxd4 {[%emt 0:01:44]} 11. cxd4 {[%emt 0:01:08]} Bd7 {[%emt 0:01:48] D85: Exchange Grünfeld: Unusual White 7th moves and lines with 7 Nf3} (11... b6 12. Be3 Bb7 13. d5 Nd7 14. Rc1 Rc8 15. Qb3 Ne5 16. h3 Ba6 17. Rxc8 Qxc8 18. Rc1 Qb7 19. Bb5 {½-½ (47) Eljanov,P (2732)-Durarbayli,V (2584) Shamkir 2014}) 12. Rb1 {[%emt 0:05:49]} b6 {[%emt 0:00:55]} 13. d5 $146 {[%emt 0:12:06]} ({Predecessor:} 13. Bb3 e6 14. Ba3 Re8 15. Re1 Bb5 16. Ba4 Bxa4 17. Qxa4 Qd7 18. Qxd7 Nxd7 19. e5 {0-1 (38) Stan,A (1879)-Padurean,D (2017) Calimanesti 2018}) 13... Na6 {[%emt 0:03:09]} 14. Ba3 {[%emt 0:04:51]} Rc8 {[%emt 0:06:05]} 15. Nd4 {[%emt 0:07:19]} Rc3 {[%emt 0:19:17]} 16. Bb2 {[%emt 0:06:09]} Rc8 {[%emt 0:06:06]} 17. Bc6 {[%emt 0:08:43]} Nc5 {[%emt 0:04:21]} 18. Re1 {[%emt 0:02:34]} e6 {[%emt 0:03:31]} 19. h3 {[%emt 0:05:10]} Re8 {[%emt 0:09:42]} 20. Bxd7 {[%emt 0:15:38]} Qxd7 {[%emt 0:00:22]} 21. dxe6 {[%emt 0:00:22]} Nxe6 {[%emt 0:00:24]} 22. Nb5 {[%emt 0:03:23]} Qxb5 {[%emt 0:02:37]} 23. Bxg7 {[%emt 0:00:08]} Qg5 {[%emt 0:03:01]} 24. Ba1 {[%emt 0:02:11]} Red8 {[%emt 0:00:42]} 25. Qf3 {[%emt 0:02:55]} Qf4 {[%emt 0:08:28]} 26. Qxf4 {[%emt 0:04:09]} Nxf4 {[%emt 0:00:02]} 27. Bf6 {[%emt 0:00:52]} Re8 {[%emt 0:01:17]} 28. Rbd1 {[%emt 0:01:42]} Rc4 {[%emt 0:00:39]} 29. g3 {[%emt 0:03:59]} Nh5 {[%emt 0:01:19]} 30. Ba1 {[%emt 0:02:18]} Ng7 {[%emt 0:00:29]} 31. Rd4 {[%emt 0:03:16]} Rc2 {[%emt 0:01:34]} 32. a4 {[%emt 0:00:41]} Ne6 {[%emt 0:00:44]} 33. Rd7 {[%emt 0:00:39]} a6 {[%emt 0:02:47]} 34. Rb7 {[%emt 0:01:11]} Rc6 {[%emt 0:01:35]} 35. Rb1 {[%emt 0:00:49]} Rec8 {[%emt 0:02:21]} 36. Bf6 {[%emt 0:01:00]} b5 {[%emt 0:05:22]} 37. axb5 {[%emt 0:00:35]} axb5 {[%emt 0:00:01]} 38. R7xb5 {[%emt 0:00:41]} Nc5 $16 {[%emt 0:00:50]} 39. Rc1 {[%emt 0:01:18]} Rxf6 {[%emt 0:01:21]} 40. Rbxc5 {[%emt 0:00:00]} Rxc5 {[%emt 0:00:00]} 41. Rxc5 {[%emt 0:00:15]} h5 {[%emt 0:00:33]} 42. Kg2 {[%emt 0:02:58]} Kg7 {[%emt 0:01:02]} 43. g4 {[%emt 0:02:00]} hxg4 {[%emt 0:03:01]} 44. hxg4 {[%emt 0:00:09]} Rb6 {[%emt 0:01:12]} 45. g5 {[%emt 0:03:52]} Rb3 {[%emt 0:01:54]} 46. f3 {[%emt 0:03:46]} Kf8 {[%emt 0:00:44]} 47. Kg3 {[%emt 0:01:53]} Ke7 {[%emt 0:00:22]} 48. Kg4 {[%emt 0:03:00]} Ra3 {[%emt 0:01:45]} 49. Rc7+ {[%emt 0:02:08]} Ke6 {[%emt 0:00:18]} 50. Rc4 {[%emt 0:00:46]} Ra1 {[%emt 0:02:01]} 51. Rc6+ {[%emt 0:02:11]} Ke7 {[%emt 0:02:17]} 52. f4 {[%emt 0:01:34]} Ra4 {[%emt 0:02:10]} 53. Kf3 {[%emt 0:01:44]} Ra3+ {[%emt 0:00:06]} 54. Ke2 {[%emt 0:00:04]} Rb3 {[%emt 0:03:27]} 55. Rc2 {[%emt 0:01:51]} Rh3 {[%emt 0:02:00]} 56. Rd2 {[%emt 0:01:47]} Ke6 {[%emt 0:03:02]} 57. Rd3 {[%emt 0:00:34]} Rh1 {[%emt 0:01:46]} 58. Rc3 {[%emt 0:01:07]} Ra1 {[%emt 0:01:01]} 59. Rb3 {[%emt 0:01:49]} Rc1 {[%emt 0:02:20]} 60. Rb6+ {[%emt 0:00:47]} Ke7 {[%emt 0:00:51]} 61. Ke3 {[%emt 0:00:33]} Rf1 {[%emt 0:00:27]} 62. Ra6 {[%emt 0:00:48]} Kd7 {[%emt 0:01:01]} 63. Rf6 {[%emt 0:00:43]} Ke7 {[%emt 0:00:18]} 64. Kd4 {[%emt 0:00:23]} Ra1 {[%emt 0:03:58]} 65. Rc6 {[%emt 0:01:00]} Ra4+ {[%emt 0:01:33]} 66. Kd5 {[%emt 0:00:15]} Kd7 {[%emt 0:00:50]} 67. Rc5 {[%emt 0:00:22]} Ra6 {[%emt 0:01:06]} 68. f5 {[%emt 0:00:59]} gxf5 {[%emt 0:00:32]} 69. exf5 {[%emt 0:00:05]} Ra1 {[%emt 0:00:43]} 70. Ke5 {[%emt 0:00:29]} Ke7 {[%emt 0:00:40]} 71. Rc7+ {[%emt 0:01:47]} Kf8 {[%emt 0:00:51]} 72. Rd7 {[%emt 0:02:46]} Ra5+ {[%emt 0:02:41]} 73. Rd5 {[%emt 0:00:28]} Ra7 {[%emt 0:00:17]} 74. f6 {[%emt 0:02:03]} Kg8 {[%emt 0:00:18]} 75. Kf5 {[%emt 0:00:50]} Kh7 {[%emt 0:00:25]} 76. Re5 {[%emt 0:00:44]} Ra1 {[%emt 0:03:08]} 77. g6+ {[%emt 0:00:38]} fxg6+ {[%emt 0:00:07]} 78. Ke6 {[%emt 0:00:04]} Kg8 {[%emt 0:01:26]} 79. Rd5 {[%emt 0:00:52]} Re1+ {[%emt 0:00:31]} 80. Re5 {[%emt 0:00:28]} Rxe5+ {[%emt 0:00:13]} 81. Kxe5 {[%emt 0:00:04]} Kf7 {[%emt 0:00:06]} 82. Kf4 {[%emt 0:00:05]} Kxf6 {[%emt 0:00:10]} 83. Kg4 {[%emt 0:00:03]} g5 {[%emt 0:00:07]} 84. Kg3 {[%emt 0:00:04]} Kf5 {[%emt 0:00:03]} 85. Kf3 {[%emt 0:00:04]} g4+ {[%emt 0:00:03]} 86. Kg3 {[%emt 0:00:04]} Kg5 {[%emt 0:00:04]} 87. Kg2 {[%emt 0:00:04]} Kf4 {[%emt 0:00:05]} 88. Kf2 {[%emt 0:00:13]} g3+ {[%emt 0:00:03]} 89. Kg2 {[%emt 0:00:04]} Kg4 {[%emt 0:00:03]} 90. Kg1 {[%emt 0:00:06]} Kf3 {[%emt 0:00:07]} 91. Kf1 {[%emt 0:00:06]} g2+ {[%emt 0:00:03]} 92. Kg1 {[%emt 0:00:04]} Kg3 {[%emt 0:00:02]} 1/2-1/2

[Event "IND-ch Women 2019"]
[Site "Karaikkudi"]
[Date "2019.07.20"]
[Round "2.11"]
[White "Pandey Srishti"]
[Black "Michelle Catherina, P."]
[Result "0-1"]
[ECO "C47"]
[WhiteElo "1882"]
[BlackElo "2226"]
[Annotator "ChessBase"]
[PlyCount "62"]
[EventDate "2019.07.19"]
[EventType "swiss"]
[EventCountry "IND"]
[SourceTitle "playchess.com"]
[Source "ChessBase"]
[SourceQuality "1"]
[TimeControl "40/5400+30:1800+30"]

1. e4 {[%emt 0:00:00]} e5 {[%emt 0:02:04]} 2. Nf3 {[%emt 0:00:00]} Nc6 {[%emt 0:00:05]} 3. Nc3 {[%emt 0:00:00]} Nf6 {[%emt 0:00:05]} 4. a3 {[%emt 0:00:31]} d5 {[%emt 0:04:35]} 5. exd5 {[%emt 0:00:53]} Nxd5 {[%emt 0:00:10]} 6. Bb5 {[%emt 0:00:06]} Nxc3 {[%emt 0:02:05]} 7. bxc3 {[%emt 0:00:07]} Bd6 {[%emt 0:00:22]} 8. d4 {[%emt 0:00:17]} exd4 {[%emt 0:02:18]} 9. Qe2+ {[%emt 0:00:27]} Kf8 {[%emt 0:09:19]} 10. cxd4 {[%emt 0:11:20]} Bg4 {[%emt 0:01:39]} 11. c3 {[%emt 0:03:48]} Qf6 {[%emt 0:05:57]} 12. Bxc6 {[%emt 0:16:34]} bxc6 {[%emt 0:00:08]} 13. Ne5 {[%emt 0:04:18]} Bxe2 {[%emt 0:09:13]} 14. Nd7+ {[%emt 0:00:06]} Ke7 {[%emt 0:00:25]} 15. Nxf6 {[%emt 0:00:05]} Bd3 {[%emt 0:02:21]} 16. Ng4 {[%emt 0:01:33]} f6 {[%emt 0:04:31]} 17. Ne3 {[%emt 0:06:01]} Kd7 {[%emt 0:03:16]} 18. Kd2 {[%emt 0:08:06]} Bg6 {[%emt 0:01:59]} 19. a4 {[%emt 0:00:34]} Rab8 {[%emt 0:06:19]} 20. h4 {[%emt 0:00:27]} h5 {[%emt 0:02:22]} 21. Rg1 {[%emt 0:07:47]} c5 {[%emt 0:07:58]} 22. dxc5 {[%emt 0:09:29]} Bxc5 {[%emt 0:02:05]} 23. g4 {[%emt 0:01:22]} Rh7 {[%emt 0:07:55]} 24. Ke1 {[%emt 0:08:18]} Kc6 {[%emt 0:01:55]} 25. gxh5 {[%emt 0:01:50]} Bd3 {[%emt 0:03:49]} 26. Ng2 {[%emt 0:03:29]} Rxh5 {[%emt 0:03:23]} 27. Nf4 {[%emt 0:11:18]} Re5+ {[%emt 0:02:04]} 28. Be3 {[%emt 0:00:12]} Bc4 {[%emt 0:05:09]} 29. Rg3 {[%emt 0:00:13]} Rb2 {[%emt 0:01:42]} 30. h5 {[%emt 0:00:21]} Re4 {[%emt 0:02:23]} 31. Rd1 {[%emt 0:03:22]} Rxf4 {[%emt 0:01:28]} 0-1

[Event "IND-ch Women 2019"]
[Site "Karaikkudi"]
[Date "2019.07.20"]
[Round "2.13"]
[White "Shetye, Siddhali"]
[Black "Priyanka, Kumari"]
[Result "1/2-1/2"]
[ECO "B07"]
[WhiteElo "1837"]
[BlackElo "1991"]
[Annotator "NA"]
[PlyCount "63"]
[EventDate "2019.07.19"]
[EventType "swiss"]
[EventCountry "IND"]
[SourceTitle "playchess.com"]
[Source "ChessBase"]
[SourceQuality "1"]
[TimeControl "40/5400+30:1800+30"]

1. d4 {[%emt 0:00:00]} Nf6 {[%emt 0:00:27]} 2. g3 {[%emt 0:00:00]} g6 {[%emt 0:00:12]} 3. Bg2 {[%emt 0:00:00]} Bg7 {[%emt 0:01:28]} 4. e4 {[%emt 0:00:11]} d6 {[%emt 0:04:05]} 5. Nc3 {[%emt 0:02:51]} O-O {[%emt 0:02:57]} 6. Nge2 {[%emt 0:00:33]} e5 {[%emt 0:04:25]} 7. O-O {[%emt 0:01:36]} c6 {[%emt 0:03:57]} 8. a4 {[%emt 0:00:39]} Nbd7 {[%emt 0:03:18]} 9. h3 {[%emt 0:02:33]} Re8 {[%emt 0:02:18]} 10. Be3 {[%emt 0:04:40]} Qc7 {[%emt 0:12:04]} 11. a5 {[%emt 0:32:06]} exd4 {[%emt 0:09:07]} 12. Bxd4 {[%emt 0:03:49]} Nc5 {[%emt 0:01:45]} 13. e5 {[%emt 0:13:20]} Rxe5 {[%emt 0:19:48]} 14. Bxe5 {[%emt 0:00:54]} dxe5 {[%emt 0:00:07]} 15. Qd2 $11 {[%emt 0:05:28]} Be6 {[%emt 0:03:36]} 16. Rfd1 {[%emt 0:03:50]} Na6 {[%emt 0:06:01]} 17. Kh2 {[%emt 0:13:14]} h5 {[%emt 0:03:03]} 18. Ne4 {[%emt 0:04:23]} Nxe4 {[%emt 0:05:51]} 19. Bxe4 {[%emt 0:00:03]} f5 {[%emt 0:02:13]} 20. Bg2 {[%emt 0:00:49]} Bf6 {[%emt 0:00:55]} 21. Qh6 {[%emt 0:04:29]} Kf7 {[%emt 0:04:05]} 22. h4 {[%emt 0:01:25]} Rh8 {[%emt 0:02:36]} 23. Qd2 {[%emt 0:00:40]} Rd8 {[%emt 0:05:51]} 24. Qe3 {[%emt 0:02:14]} Rxd1 {[%emt 0:00:49]} 25. Rxd1 {[%emt 0:00:01]} c5 {[%emt 0:00:54]} 26. Nc3 {[%emt 0:01:18]} e4 {[%emt 0:00:31]} 27. Nb5 {[%emt 0:01:16]} Qxa5 {[%emt 0:00:31]} 28. Nd6+ {[%emt 0:00:02]} Kg7 {[%emt 0:00:31]} 29. Ne8+ {[%emt 0:00:30]} Kf7 {[%emt 0:00:05]} 30. Nd6+ {[%emt 0:01:29]} Kg7 {[%emt 0:00:09]} 31. Ne8+ {[%emt 0:00:06]} Kf7 {[%emt 0:00:04]} 32. Nd6+ {[%emt 0:00:46]} 1/2-1/2

[Event "IND-ch Women 2019"]
[Site "Karaikkudi"]
[Date "2019.07.20"]
[Round "2.14"]
[White "Sunyuktha C M N"]
[Black "Sharma Isha"]
[Result "1-0"]
[ECO "B07"]
[WhiteElo "1815"]
[BlackElo "2188"]
[Annotator "ChessBase"]
[PlyCount "65"]
[EventDate "2019.07.19"]
[EventType "swiss"]
[EventCountry "IND"]
[SourceTitle "playchess.com"]
[Source "ChessBase"]
[SourceQuality "1"]
[TimeControl "40/5400+30:1800+30"]

1. e4 {[%emt 0:00:04]} d6 {[%emt 0:00:38]} 2. d4 {[%emt 0:00:33]} Nf6 {[%emt 0:00:08]} 3. Nc3 {[%emt 0:04:46]} e5 {[%emt 0:00:07]} 4. Bc4 {[%emt 0:14:51]} exd4 {[%emt 0:03:05]} 5. Qxd4 {[%emt 0:01:19]} Nc6 {[%emt 0:00:08]} 6. Bb5 {[%emt 0:23:43]} Bd7 {[%emt 0:01:36]} 7. Bxc6 {[%emt 0:00:50]} bxc6 {[%emt 0:00:44]} 8. Bg5 {[%emt 0:05:42]} Be7 {[%emt 0:03:48]} 9. Nf3 {[%emt 0:04:34]} O-O {[%emt 0:02:05]} 10. O-O {[%emt 0:02:08]} h6 {[%emt 0:01:31]} 11. Bh4 {[%emt 0:01:53]} g5 {[%emt 0:04:51]} 12. Bg3 {[%emt 0:07:25]} Nh5 {[%emt 0:00:48]} 13. Qd3 {[%emt 0:14:34]} Rb8 {[%emt 0:06:06]} 14. Rab1 {[%emt 0:01:48]} Bf6 {[%emt 0:05:59]} 15. Nd4 {[%emt 0:02:31]} Bh8 {[%emt 0:16:35]} 16. Nde2 {[%emt 0:05:21]} f5 {[%emt 0:07:06]} 17. Qc4+ {[%emt 0:03:25]} Kh7 {[%emt 0:06:24]} 18. exf5 {[%emt 0:00:35]} Rxf5 {[%emt 0:10:35]} 19. Qd3 {[%emt 0:01:28]} Kg8 {[%emt 0:14:05]} 20. Nd1 {[%emt 0:01:21]} Qf6 {[%emt 0:03:54]} 21. Ne3 {[%emt 0:01:39]} Ra5 {[%emt 0:00:07]} 22. f4 {[%emt 0:00:00]} g4 {[%emt 0:02:54]} 23. f5 {[%emt 0:00:07]} Nxg3 {[%emt 0:01:19]} 24. Nxg3 {[%emt 0:00:37]} Rb4 {[%emt 0:00:14]} 25. a3 {[%emt 0:00:24]} Rd4 {[%emt 0:00:14]} 26. Qb3+ {[%emt 0:00:03]} Qf7 {[%emt 0:01:01]} 27. Qb8+ {[%emt 0:00:22]} Qe8 {[%emt 0:00:07]} 28. Qxe8+ {[%emt 0:00:18]} Bxe8 {[%emt 0:00:04]} 29. c3 {[%emt 0:00:48]} Rda4 {[%emt 0:00:11]} 30. Rbe1 {[%emt 0:01:13]} Kf8 {[%emt 0:01:07]} 31. f6 {[%emt 0:00:32]} Rb5 {[%emt 0:01:25]} 32. Nef5 {[%emt 0:00:29]} Rxb2 {[%emt 0:05:48]} 33. f7 {[%emt 0:00:21]} 1-0

[Event "IND-ch Women 2019"]
[Site "Karaikkudi"]
[Date "2019.07.20"]
[Round "2.15"]
[White "Singh, Neha"]
[Black "Meenakshi Subbaraman"]
[Result "0-1"]
[ECO "B01"]
[WhiteElo "1809"]
[BlackElo "2163"]
[Annotator "NA"]
[PlyCount "86"]
[EventDate "2019.07.19"]
[EventType "swiss"]
[EventCountry "IND"]
[SourceTitle "playchess.com"]
[Source "ChessBase"]
[SourceQuality "1"]
[TimeControl "40/5400+30:1800+30"]

1. e4 {[%emt 0:00:00]} d5 {[%emt 0:00:27]} 2. exd5 {[%emt 0:00:00]} Qxd5 {[%emt 0:00:08]} 3. Nc3 {[%emt 0:00:00]} Qd8 {[%emt 0:00:07]} 4. d4 {[%emt 0:00:22]} Nf6 {[%emt 0:00:40]} 5. Nf3 {[%emt 0:05:23]} g6 {[%emt 0:00:19]} 6. g3 {[%emt 0:01:19]} Bg7 {[%emt 0:01:08]} 7. Bg2 {[%emt 0:00:05]} Bg4 {[%emt 0:05:34]} 8. Qd3 {[%emt 0:04:29]} Bxf3 {[%emt 0:00:09]} 9. Bxf3 {[%emt 0:00:08]} c6 {[%emt 0:00:12]} 10. Bd2 {[%emt 0:04:23]} Nbd7 {[%emt 0:10:10]} 11. O-O-O {[%emt 0:03:34]} O-O {[%emt 0:00:15]} 12. h4 {[%emt 0:13:21]} e5 {[%emt 0:05:01]} 13. d5 {[%emt 0:13:33]} e4 {[%emt 0:13:15]} 14. Nxe4 {[%emt 0:02:17]} Ne5 {[%emt 0:00:26]} 15. Qe2 {[%emt 0:02:22]} Nxf3 {[%emt 0:12:06]} 16. Qxf3 {[%emt 0:00:08]} Nxe4 {[%emt 0:00:20]} 17. Qxe4 {[%emt 0:00:05]} cxd5 {[%emt 0:03:46]} 18. Qb4 {[%emt 0:06:48]} a5 {[%emt 0:02:18]} 19. Qb5 {[%emt 0:01:37]} d4 {[%emt 0:05:17]} 20. h5 {[%emt 0:03:33]} a4 {[%emt 0:05:42]} 21. hxg6 {[%emt 0:09:20]} ({Much worse is} 21. Qxb7 Rb8 $17) 21... fxg6 $11 {[%emt 0:05:40]} 22. Qc4+ {[%emt 0:03:57]} Rf7 {[%emt 0:00:43]} 23. Be3 {[%emt 0:12:42]} Qc8 {[%emt 0:11:45]} 24. Qxc8+ {[%emt 0:02:24]} Rxc8 {[%emt 0:00:30]} 25. Bxd4 {[%emt 0:00:44]} Bxd4 {[%emt 0:00:05]} 26. Rxd4 {[%emt 0:00:02]} Rxf2 {[%emt 0:00:10]} 27. Rd2 {[%emt 0:00:31]} Rxd2 {[%emt 0:02:25]} 28. Kxd2 {[%emt 0:00:02]} Kg7 {[%emt 0:00:13]} 29. Rh4 {[%emt 0:03:16]} a3 {[%emt 0:03:24]} 30. bxa3 {[%emt 0:00:39]} Rc7 {[%emt 0:01:29]} 31. c4 {[%emt 0:01:09]} Kf6 {[%emt 0:00:09]} 32. Kc3 {[%emt 0:00:16]} g5 {[%emt 0:02:46]} 33. Rd4 {[%emt 0:02:12]} h5 {[%emt 0:00:27]} 34. Kb4 {[%emt 0:01:17]} Rh7 {[%emt 0:02:07]} 35. Kc5 {[%emt 0:03:04]} h4 {[%emt 0:01:27]} 36. gxh4 {[%emt 0:00:26]} gxh4 {[%emt 0:00:02]} 37. Rd1 {[%emt 0:01:02]} Ke5 {[%emt 0:04:59]} 38. a4 {[%emt 0:00:40]} Rh6 {[%emt 0:00:42]} 39. a5 {[%emt 0:00:50]} h3 {[%emt 0:00:45]} 40. Rh1 {[%emt 0:00:00]} Ke4 {[%emt 0:00:00]} 41. a6 {[%emt 0:07:39]} bxa6 {[%emt 0:04:23]} 42. a4 {[%emt 0:03:19]} h2 {[%emt 0:04:31]} 43. Kb4 {[%emt 0:08:50]} Ke5 {[%emt 0:25:28]} 0-1

[Event "IND-ch Women 2019"]
[Site "Karaikkudi"]
[Date "2019.07.20"]
[Round "2.16"]
[White "Parnali, S Dharia"]
[Black "Sunyasakta, Satpathy"]
[Result "0-1"]
[ECO "E09"]
[WhiteElo "2145"]
[BlackElo "1801"]
[Annotator "ChessBase"]
[PlyCount "76"]
[EventDate "2019.07.19"]
[EventType "swiss"]
[EventCountry "IND"]
[SourceTitle "playchess.com"]
[Source "ChessBase"]
[SourceQuality "1"]
[TimeControl "40/5400+30:1800+30"]

1. d4 {[%emt 0:00:00]} d5 {[%emt 0:00:00]} 2. c4 {[%emt 0:00:00]} e6 {[%emt 0:00:00]} 3. Nf3 {[%emt 0:00:00]} Nf6 {[%emt 0:00:03]} 4. g3 {[%emt 0:00:00]} c6 {[%emt 0:00:06]} 5. Bg2 {[%emt 0:00:11]} Nbd7 {[%emt 0:00:34]} 6. Qc2 {[%emt 0:00:23]} Be7 {[%emt 0:00:42]} 7. Nbd2 {[%emt 0:00:25]} O-O {[%emt 0:01:11]} 8. O-O {[%emt 1:33:01]} b6 {[%emt 0:01:21]} 9. Rd1 {[%emt 0:00:00]} Ba6 {[%emt 0:03:31]} 10. b3 {[%emt 0:00:00]} Rc8 {[%emt 0:09:01]} 11. Bb2 {[%emt 0:00:00]} c5 {[%emt 0:27:02]} 12. Rac1 {[%emt 0:00:00]} b5 {[%emt 0:07:13]} 13. Qb1 {[%emt 0:00:00]} bxc4 {[%emt 0:02:30]} 14. bxc4 {[%emt 0:00:00]} Rb8 {[%emt 0:06:25]} 15. Qa1 {[%emt 0:00:00]} Qb6 {[%emt 0:02:31]} 16. Ba3 {[%emt 0:00:00]} Qa5 {[%emt 0:02:27]} 17. Bb2 {[%emt 0:00:00]} Qb6 {[%emt 0:03:48]} 18. Bc3 {[%emt 0:00:00]} dxc4 {[%emt 0:05:20]} 19. Ne5 {[%emt 0:00:00]} Nxe5 {[%emt 0:01:43]} 20. dxe5 {[%emt 0:00:00]} Nd5 {[%emt 0:01:54]} 21. Ne4 {[%emt 0:00:00]} Nxc3 {[%emt 0:02:03]} 22. Qxc3 {[%emt 0:00:00]} Rfd8 {[%emt 0:02:07]} 23. Bf3 {[%emt 0:00:00]} Rd4 {[%emt 0:05:18]} 24. Qa3 {[%emt 0:00:00]} Kf8 {[%emt 0:06:19]} 25. Kg2 {[%emt 0:00:00]} Bb5 {[%emt 0:02:53]} 26. Nc3 {[%emt 0:00:00]} a6 {[%emt 0:00:54]} 27. Rb1 {[%emt 0:00:00]} Qc7 {[%emt 0:00:21]} 28. e3 {[%emt 0:00:00]} Rxd1 {[%emt 0:01:22]} 29. Rxd1 {[%emt 0:00:00]} Qxe5 {[%emt 0:02:15]} 30. Qa5 {[%emt 0:00:00]} Be8 {[%emt 0:01:37]} 31. Ne2 {[%emt 0:00:00]} Rb2 {[%emt 0:01:13]} 32. Qxa6 {[%emt 0:00:00]} c3 {[%emt 0:00:09]} 33. Qc4 {[%emt 0:00:00]} c2 {[%emt 0:00:28]} 34. Rc1 {[%emt 0:00:00]} Bb5 {[%emt 0:00:08]} 35. Qf4 {[%emt 0:00:00]} Qxf4 {[%emt 0:00:13]} 36. Nxf4 {[%emt 0:00:00]} g5 {[%emt 0:00:39]} 37. Ne2 {[%emt 0:00:00]} Bd3 {[%emt 0:00:36]} 38. Nc3 {[%emt 0:00:00]} Rb1 {[%emt 0:00:17]} 0-1